fUST/lending_fUST_20250424
["ID","MTS","AMOUNT","RATE_DAILY","PERIOD"]
[358795892,1745437844044,-247.085935,0.00024446,7]
[358795893,1745437844054,-287.023671,0.00024446,7]
[358795894,1745437844068,-151.0,0.00024446,7]
[358795895,1745437844081,-1038.646424,0.00024446,7]
[358795896,1745437844091,-160.0,0.00024446,7]
[358795897,1745437844100,-160.0,0.00024446,7]
[358795898,1745437844110,-420.82143104,0.00024446,7]
[358795899,1745437844120,-151.0,0.000245,5]
[358795900,1745437844129,-151.0,0.0002455,7]
[358795901,1745437844139,-151.0,0.00024594,2]
[358795902,1745437844149,-151.0,0.0002465,7]
[358795903,1745437844158,-151.0,0.0002465,7]
[358795904,1745437844168,-151.0,0.0002465,7]
[358795905,1745437844177,-151.0,0.0002465,7]
[358795906,1745437844187,-151.0,0.0002465,7]
[358795907,1745437844196,-183.142653,0.0002465,7]
[358795908,1745437844205,-151.0,0.0002465,7]
[358795909,1745437844215,-151.0,0.0002465,7]
[358795910,1745437844224,-356.984825,0.0002465,7]
[358795911,1745437844233,-356.984825,0.0002465,7]
[358795912,1745437844243,-231.33332,0.0002465,7]
[358795913,1745437844252,-231.33332,0.0002465,7]
[358795914,1745437844262,-151.0,0.0002465,7]
[358795915,1745437844271,-151.0,0.0002465,7]
[358795916,1745437844281,-151.0,0.0002465,7]
[358795917,1745437844290,-151.0,0.0002465,7]
[358795918,1745437844300,-165.91295,0.0002465,7]
[358795919,1745437844309,-151.0,0.0002465,7]
[358795920,1745437844319,-151.0,0.0002465,7]
[358795921,1745437844329,-151.0,0.0002465,7]
[358795922,1745437844339,-151.0,0.0002465,7]
[358795923,1745437844348,-151.0,0.0002465,7]
[358795924,1745437844358,-1766.45142,0.0002465,7]
[358795925,1745437844367,-1766.45142,0.0002465,7]
[358795926,1745437844377,-151.0,0.0002465,7]
[358795927,1745437844387,-151.0,0.0002465,7]
[358795928,1745437844396,-151.0,0.0002465,7]
[358795929,1745437844405,-151.0,0.0002465,7]
[358795930,1745437844415,-160.0,0.0002465,7]
[358795931,1745437844424,-160.0,0.0002465,7]
[358795932,1745437844434,-1038.646424,0.00024672,7]
[358795933,1745437844443,-1038.646424,0.00024672,7]
[358795934,1745437844453,-965.306003,0.00024673,7]
[358795935,1745437844463,-965.306003,0.00024673,7]
[358795936,1745437844473,-965.306003,0.00024673,7]
[358795937,1745437844483,-965.306003,0.00024673,7]
[358795938,1745437844492,-247.085935,0.00024673,7]
[358795939,1745437844502,-247.085935,0.00024673,7]
[358795940,1745437844511,-247.085935,0.00024673,7]
[358795941,1745437844521,-247.085935,0.00024673,7]
[358795942,1745437844530,-4146.14152627,0.00024693,5]
[358795943,1745437844539,-151.0,0.000247,7]
[358795944,1745437844549,-1538.0683429,0.00024727,2]
[358795945,1745437844559,-500.0,0.00024773,2]
[358795946,1745437844572,-500.0,0.00024773,2]
[358795947,1745437844582,-500.0,0.00024773,2]
[358795948,1745437844591,-500.0,0.00024773,2]
[358795949,1745437844601,-500.0,0.00024773,2]
[358795950,1745437844611,-1041.24686209,0.00024774,30]
[358795951,1745437844620,-376.80795058,0.00024785,2]
[358795952,1745437844631,-151.0,0.00024799,7]
[358795953,1745437844641,-151.0,0.00024799,7]
[358795954,1745437844651,-151.0,0.00024799,7]
[358795955,1745437844660,-151.0,0.00024799,7]
[358795956,1745437844669,-151.0,0.00024799,7]
[358795957,1745437844679,-1000.0,0.00024799,14]
[358795958,1745437844688,-1000.0,0.00024799,14]
[358795959,1745437844698,-1000.0,0.00024799,14]
[358795960,1745437844708,-1000.0,0.00024799,14]
[358795961,1745437844717,-1000.0,0.00024799,14]
[358795962,1745437844726,-1000.0,0.00024799,14]
[358795963,1745437844736,-1000.0,0.00024799,14]
[358795964,1745437844745,-1000.0,0.00024799,14]
[358795965,1745437844755,-1000.0,0.00024799,14]
[358795966,1745437844765,-1000.0,0.00024799,14]
[358795967,1745437844775,-1000.0,0.00024799,14]
[358795968,1745437844784,-1000.0,0.00024799,14]
[358795969,1745437844795,-1000.0,0.00024799,14]
[358795970,1745437844805,-1000.0,0.00024799,14]
[358795971,1745437844814,-1000.0,0.00024799,14]
[358795972,1745437844823,-1000.0,0.00024799,14]
[358795973,1745437844833,-1000.0,0.00024799,14]
[358795974,1745437844843,-1000.0,0.00024799,14]
[358795975,1745437844852,-1000.0,0.00024799,14]
[358795976,1745437844862,-1000.0,0.00024799,14]
[358795977,1745437844871,-1000.0,0.00024799,14]
[358795978,1745437844882,-1000.0,0.00024799,14]
[358795979,1745437844892,-1000.0,0.00024799,14]
[358795980,1745437844901,-1000.0,0.00024799,14]
[358795981,1745437844911,-1000.0,0.00024799,14]
[358795982,1745437844920,-1000.0,0.00024799,14]
[358795983,1745437844930,-1766.45142,0.00024799,7]
[358795984,1745437844940,-1766.45142,0.00024799,7]
[358795985,1745437844949,-1766.45142,0.00024799,7]
[358795986,1745437844959,-1766.45142,0.00024799,7]
[358795987,1745437844970,-151.0,0.00024799,7]
[358795988,1745437844979,-151.0,0.00024799,7]
[358795989,1745437844988,-151.0,0.000248,7]
[358795990,1745437844999,-151.0,0.000248,7]
[358795991,1745437845010,-151.0,0.000248,7]
[358795992,1745437845019,-151.0,0.000248,7]
[358795993,1745437845029,-151.0,0.000248,7]
[358795994,1745437845039,-151.0,0.000248,7]
[358795995,1745437845049,-151.0,0.000248,7]
[358795996,1745437845058,-151.0,0.000248,7]
[358795997,1745437845068,-356.984825,0.000248,7]
[358795998,1745437845077,-356.984825,0.000248,7]
[358795999,1745437845087,-356.984825,0.000248,7]
[358796000,1745437845096,-356.984825,0.000248,7]
[358796001,1745437845106,-231.33332,0.000248,7]
[358796002,1745437845115,-231.33332,0.000248,7]
[358796003,1745437845127,-231.33332,0.000248,7]
[358796004,1745437845137,-231.33332,0.000248,7]
[358796005,1745437845147,-152.081631,0.000248,7]
[358796006,1745437845157,-965.306003,0.000248,7]
[358796007,1745437845167,-965.306003,0.000248,7]
[358796008,1745437845178,-151.0,0.000248,7]
[358796009,1745437845188,-151.0,0.000248,7]
[358796010,1745437845197,-151.0,0.000248,7]
[358796011,1745437845206,-151.0,0.000248,7]
[358796012,1745437845216,-151.0,0.000248,7]
[358796013,1745437845225,-247.085935,0.000248,7]
[358796014,1745437845391,-247.085935,0.000248,7]
[358796015,1745437845402,-151.0,0.000248,7]
[358796016,1745437845413,-1766.45142,0.000248,7]
[358796017,1745437845422,-1766.45142,0.000248,7]
[358796018,1745437845432,-1038.646424,0.000248,7]
[358796019,1745437845441,-193.135109,0.000248,7]
[358796020,1745437845451,-160.0,0.000248,7]
[358796021,1745437845460,-160.0,0.000248,7]
[358796022,1745437845470,-420.82143104,0.000248,7]
[358796023,1745437845479,-17697.4770638,0.000248,2]
[358796024,1745437845488,-1769.74770638,0.00024841,2]
[358796025,1745437845498,-10416.54467888,0.00024851,2]
[358796026,1745437845508,-822.89607868,0.00024857,2]
[358796027,1745437845518,-10416.54467888,0.00024859,2]
[358796028,1745437845527,-1769.74770638,0.00024863,2]
[358796029,1745437845537,-1769.74770638,0.00024865,2]
[358796030,1745437845548,-822.89607868,0.0002487,2]
[358796031,1745437845557,-500.0,0.00024873,2]
[358796032,1745437845566,-500.0,0.00024873,2]
[358796033,1745437845575,-500.0,0.00024873,2]
[358796034,1745437845585,-500.0,0.00024873,2]
[358796035,1745437845594,-318.0490392,0.00024873,2]
[358796036,1745437845604,-530.24391926,0.00024873,2]
[358796037,1745437845613,-500.0,0.00024873,2]
[358796038,1745437845622,-500.0,0.00024873,2]
[358796039,1745437845632,-502.18756215,0.00024873,2]
[358796040,1745437845641,-500.0,0.00024873,2]
[358796041,1745437845651,-398.61186875,0.00024873,2]
[358796042,1745437845660,-35.83159614,0.00024873,2]
[358796053,1745437846873,-167.192,0.00022505,2]
[358796054,1745437846883,-250.0,0.00022505,2]
[358796055,1745437846892,-150.078,0.00022505,2]
[358796056,1745437846901,-839.95942076,0.0002465,7]
[358796057,1745437846910,-255.19149772,0.00024699,2]
[358796058,1745437846919,-464.16840386,0.00024873,2]
[358796059,1745437846929,-500.0,0.00024873,2]
[358796060,1745437846938,-501.24823977,0.00024873,2]
[358796061,1745437846947,-491.14846184,0.00024873,2]
[358796062,1745437846956,-528.71929353,0.00024873,2]
[358796063,1745437846969,-505.84413546,0.00024873,2]
[358796064,1745437846977,-501.34206794,0.00024873,2]
[358796065,1745437846986,-504.28190392,0.00024873,2]
[358796066,1745437846996,-500.0,0.00024873,2]
[358796067,1745437847007,-500.0,0.00024873,2]
[358796068,1745437847015,-500.0,0.00024873,2]
[358796069,1745437847025,-500.0,0.00024873,2]
[358796070,1745437847033,-21036.55275391,0.00024874,2]
[358796071,1745437847043,-21036.55275391,0.00024875,2]
[358796072,1745437847053,-10416.54467888,0.00024882,2]
[358796073,1745437847062,-10416.54467888,0.00024885,2]
[358796074,1745437847071,-1769.74770638,0.00024888,2]
[358796075,1745437847080,-1769.74770638,0.00024889,2]
[358796076,1745437847089,-151.0,0.0002489,7]
[358796077,1745437847098,-151.0,0.0002489,7]
[358796078,1745437847107,-151.0,0.0002489,7]
[358796079,1745437847117,-224.127184,0.0002489,7]
[358796080,1745437847126,-224.127184,0.0002489,7]
[358796081,1745437847135,-151.0,0.0002489,7]
[358796082,1745437847144,-151.0,0.0002489,7]
[358796083,1745437847326,-151.0,0.0002489,7]
[358796084,1745437847336,-151.0,0.0002489,7]
[358796085,1745437847345,-250.426367,0.0002489,7]
[358796086,1745437847355,-212.761191,0.0002489,7]
[358796087,1745437847365,-212.761191,0.0002489,7]
[358796088,1745437847374,-151.0,0.0002489,7]
[358796089,1745437847384,-822.89607868,0.00024893,2]
[358796090,1745437847393,-822.89607868,0.00024896,2]
[358796091,1745437847402,-21036.55275391,0.00024898,2]
[358796092,1745437847411,-156.805879,0.00024898,7]
[358796093,1745437847421,-231.33332,0.00024898,7]
[358796094,1745437847430,-231.33332,0.00024898,7]
[358796095,1745437847440,-965.306003,0.00024898,7]
[358796096,1745437847449,-965.306003,0.00024898,7]
[358796097,1745437847459,-151.0,0.00024898,7]
[358796098,1745437847468,-151.0,0.00024898,7]
[358796099,1745437847477,-151.0,0.00024898,7]
[358796100,1745437847486,-247.085935,0.00024898,7]
[358796101,1745437847495,-247.085935,0.00024898,7]
[358796102,1745437847504,-151.0,0.00024898,7]
[358796103,1745437847514,-1766.45142,0.00024898,7]
[358796104,1745437847523,-1766.45142,0.00024898,7]
[358796105,1745437847532,-1038.646424,0.00024898,7]
[358796106,1745437847541,-151.0,0.00024898,7]
[358796107,1745437847550,-151.0,0.00024898,7]
[358796108,1745437847560,-151.217405,0.00024898,7]
[358796109,1745437847569,-177.275532,0.00024898,7]
[358796110,1745437847578,-289.499773,0.00024898,7]
[358796111,1745437847588,-289.499773,0.00024898,7]
[358796112,1745437847597,-21036.55275391,0.00024899,2]
[358796113,1745437847606,-151.0,0.000249,7]
[358796114,1745437847615,-151.0,0.000249,7]
[358796115,1745437847624,-151.0,0.000249,7]
[358796116,1745437847634,-151.0,0.000249,7]
[358796117,1745437847643,-164.117832,0.000249,7]
[358796118,1745437847652,-151.0,0.000249,7]
[358796119,1745437847661,-151.0,0.000249,7]
[358796120,1745437847670,-356.984825,0.000249,7]
[358796121,1745437847679,-356.984825,0.000249,7]
[358796122,1745437847688,-231.33332,0.000249,7]
[358796123,1745437847697,-231.33332,0.000249,7]
[358796124,1745437847707,-965.306003,0.000249,7]
[358796125,1745437847716,-965.306,0.000249,7]
[358796126,1745437847725,-151.0,0.000249,7]
[358796127,1745437847734,-151.0,0.000249,7]
[358796128,1745437847742,-151.0,0.000249,7]
[358796129,1745437847751,-247.085935,0.000249,7]
[358796130,1745437847761,-247.085926,0.000249,7]
[358796131,1745437847770,-151.0,0.000249,7]
[358796132,1745437847779,-151.0,0.000249,7]
[358796133,1745437847789,-1766.45142,0.000249,7]
[358796134,1745437847798,-1766.45141846,0.000249,7]
[358796135,1745437847807,-1038.646425,0.000249,7]
[358796136,1745437847816,-151.0,0.000249,7]
[358796137,1745437847825,-151.0,0.000249,7]
[358796138,1745437847835,-151.0,0.000249,7]
[358796139,1745437847844,-164.009768,0.000249,7]
[358796140,1745437847853,-151.0,0.000249,7]
[358796141,1745437847863,-151.0,0.000249,7]
[358796142,1745437847873,-151.0,0.000249,7]
[358796143,1745437847883,-151.0,0.000249,7]
[358796144,1745437847892,-151.0,0.000249,7]
[358796145,1745437847901,-151.0,0.000249,7]
[358796146,1745437847911,-224.127184,0.000249,7]
[358796147,1745437847920,-224.127184,0.000249,7]
[358796148,1745437847930,-224.127184,0.000249,7]
[358796149,1745437847939,-224.127184,0.000249,7]
[358796150,1745437847948,-224.127184,0.000249,7]
[358796151,1745437847958,-224.127184,0.000249,7]
[358796152,1745437847970,-151.0,0.000249,7]
[358796153,1745437847981,-151.0,0.000249,7]
[358796154,1745437847990,-151.0,0.000249,7]
[358796155,1745437848000,-151.0,0.000249,7]
[358796156,1745437848010,-151.0,0.000249,7]
[358796157,1745437848019,-151.0,0.000249,7]
[358796158,1745437848029,-151.0,0.000249,7]
[358796159,1745437848040,-151.0,0.000249,7]
[358796160,1745437848050,-261.09134,0.000249,7]
[358796161,1745437848060,-151.0,0.000249,7]
[358796162,1745437848070,-151.0,0.000249,7]
[358796163,1745437848079,-151.0,0.000249,7]
[358796164,1745437848089,-151.0,0.000249,7]
[358796165,1745437848098,-151.0,0.000249,7]
[358796166,1745437848108,-151.0,0.000249,7]
[358796167,1745437848118,-212.761191,0.000249,7]
[358796168,1745437848129,-212.761191,0.000249,7]
[358796169,1745437848141,-151.0,0.000249,7]
[358796170,1745437848150,-151.0,0.000249,7]
[358796171,1745437848160,-151.0,0.000249,7]
[358796172,1745437848169,-151.0,0.000249,7]
[358796173,1745437848178,-151.0,0.000249,7]
[358796174,1745437848187,-151.0,0.000249,7]
[358796175,1745437848197,-151.0,0.000249,7]
[358796176,1745437848206,-151.0,0.000249,7]
[358796177,1745437848216,-291.029448,0.000249,7]
[358796178,1745437848226,-193.505172,0.000249,7]
[358796179,1745437848236,-291.029448,0.000249,7]
[358796180,1745437848246,-193.505172,0.000249,7]
[358796181,1745437848256,-171.353025,0.000249,7]
[358796182,1745437848266,-171.353025,0.000249,7]
[358796183,1745437848275,-151.0,0.000249,7]
[358796184,1745437848285,-151.0,0.000249,7]
[358796185,1745437848294,-151.0,0.000249,7]
[358796186,1745437848304,-180.506514,0.000249,2]
[358796187,1745437848313,-180.506514,0.000249,2]
[358796188,1745437848323,-151.0,0.000249,2]
[358796189,1745437848333,-151.0,0.000249,2]
[358796190,1745437848342,-402.296687,0.000249,7]
[358796191,1745437848352,-402.296687,0.000249,7]
[358796192,1745437848363,-210075.81517284,0.000249,2]
[358796202,1745438454844,-216.0080295,0.00018832,2]
[358796210,1745438580065,-174.7515356,0.00018831,2]
[358796215,1745438612262,-152.0,0.00018831,2]
[358796217,1745438645541,-160.35266277,0.0001883,2]
[358796218,1745438647263,-139.64733723,0.0001883,2]
[358796219,1745438647289,-20.70532554,0.00018831,2]
[358796220,1745438671187,-209.23651307,0.00018732,2]
[358796221,1745438679732,-283.9153967,0.00018732,2]
[358796225,1745438703044,-167.87915365,0.0001873,2]
[358796226,1745438703072,-121.48847609,0.00018731,2]
[358796227,1745438713807,-500.0,0.00018732,2]
[358796228,1745438761881,-7.88501796,0.00018732,2]
[358796229,1745438761906,-482.8317618,0.00018829,2]
[358796230,1745438781818,-178.45902422,0.0001873,2]
[358796236,1745438868620,-178.45902422,0.0001863,2]
[358796237,1745438888384,-160.70374077,0.00018729,2]
[358796240,1745438964606,-152.0,0.0001863,2]
[358796241,1745438972277,-89.16276499,0.0001863,2]
[358796242,1745438972302,-132.32903501,0.0001863,2]
[358796250,1745439032596,-117.67096499,0.0001863,2]
[358796251,1745439032606,-35.81080697,0.0001873,2]
[358796252,1745439032616,-300.0,0.00018827,2]
[358796253,1745439032626,-2266.76416921,0.00018828,2]
[358796254,1745439032639,-6221.03240673,0.00018828,2]
[358796255,1745439032663,-1058.7216521,0.00018828,2]
[358796309,1745439038622,-500.0,0.00018827,2]
[358796311,1745439038633,-490.71677976,0.00018827,2]
[358796313,1745439038643,-500.0,0.00018827,2]
[358796315,1745439038652,-500.0,0.00018827,2]
[358796317,1745439038661,-345.0,0.00018827,2]
[358796319,1745439038670,-500.0,0.00018827,2]
[358796321,1745439038680,-500.0,0.00018827,2]
[358796323,1745439038689,-500.0,0.00018827,2]
[358796325,1745439038698,-500.0,0.00018827,2]
[358796327,1745439038708,-500.0,0.00018827,2]
[358796329,1745439038718,-500.0,0.00018827,2]
[358796331,1745439038727,-500.0,0.00018827,2]
[358796333,1745439038737,-500.0,0.00018827,2]
[358796335,1745439038746,-500.0,0.00018827,2]
[358796338,1745439038756,-500.0,0.00018827,2]
[358796341,1745439038766,-500.0,0.00018827,2]
[358796343,1745439038776,-500.0,0.00018827,2]
[358796345,1745439038786,-500.0,0.00018827,2]
[358796347,1745439038795,-500.0,0.00018827,2]
[358796349,1745439038805,-500.0,0.00018827,2]
[358796351,1745439038815,-500.0,0.00018827,2]
[358796352,1745439038824,-500.0,0.00018827,2]
[358796354,1745439038833,-547.56090931,0.00018827,2]
[358796356,1745439038843,-500.0,0.00018827,2]
[358796358,1745439038852,-500.0,0.00018827,2]
[358796360,1745439038862,-500.0,0.00018827,2]
[358796362,1745439038872,-500.0,0.00018827,2]
[358796364,1745439038882,-465.10051763,0.00018827,2]
[358796366,1745439038893,-17974.30832847,0.00018828,2]
[358796370,1745439038922,-1918.93198644,0.00018828,2]
[358796372,1745439038933,-9375.85396381,0.00018828,2]
[358796375,1745439038947,-11184.38749324,0.00018828,2]
[358796377,1745439038956,-9783.9919705,0.00018832,2]
[358796379,1745439038967,-500.0,0.00019606,2]
[358796381,1745439038977,-500.0,0.000197,2]
[358796383,1745439038987,-500.0,0.00019773,2]
[358796385,1745439038996,-500.0,0.00019773,2]
[358796387,1745439039006,-500.0,0.00019773,2]
[358796389,1745439039016,-500.0,0.00019795,2]
[358796391,1745439039025,-500.0,0.00019795,2]
[358796393,1745439039035,-300.0,0.00019795,2]
[358796394,1745439039044,-500.0,0.00019795,2]
[358796397,1745439039055,-500.0,0.00019795,2]
[358796399,1745439039065,-500.0,0.00019795,2]
[358796401,1745439039075,-500.0,0.00019857,2]
[358796403,1745439039085,-500.0,0.00019857,2]
[358796405,1745439039095,-500.0,0.00019857,2]
[358796407,1745439039105,-500.0,0.00019857,2]
[358796409,1745439039114,-500.0,0.00019857,2]
[358796411,1745439039124,-160.0,0.0002011,2]
[358796413,1745439039134,-160.0,0.0002011,2]
[358796415,1745439039144,-839.95942076,0.0002011,2]
[358796417,1745439039154,-160.0,0.0002011,2]
[358796419,1745439039163,-420.82143104,0.0002011,2]
[358796421,1745439039173,-160.0,0.0002011,2]
[358796423,1745439039183,-12573.79847128,0.0002011,2]
[358796424,1745439039192,-160.0,0.0002011,2]
[358796426,1745439039203,-503.90949612,0.00020147,2]
[358796427,1745439039212,-3316.91322119,0.000202,2]
[358796428,1745439039221,-245.0,0.00020339,2]
[358796429,1745439039231,-500.0,0.00020339,2]
[358796430,1745439039242,-500.0,0.00020454,2]
[358796431,1745439039252,-500.0,0.00020454,2]
[358796432,1745439039262,-420.0,0.00020525,2]
[358796433,1745439039273,-500.0,0.00020613,2]
[358796434,1745439039283,-3316.91322101,0.00020693,2]
[358796435,1745439039293,-500.0,0.00020887,2]
[358796436,1745439039303,-3000.0,0.00021,2]
[358796437,1745439039313,-157.04,0.00021,2]
[358796438,1745439039322,-3000.0,0.0002101,2]
[358796439,1745439039332,-151.0,0.0002101,2]
[358796440,1745439039342,-198.0,0.0002101,2]
[358796441,1745439039351,-151.0,0.0002101,2]
[358796442,1745439039362,-151.0,0.0002101,2]
[358796443,1745439039372,-151.0,0.0002101,2]
[358796444,1745439039382,-151.0,0.0002101,2]
[358796445,1745439039392,-151.0,0.0002101,2]
[358796446,1745439039401,-151.0,0.0002101,2]
[358796447,1745439039411,-151.0,0.0002101,2]
[358796448,1745439039420,-500.0,0.0002101,2]
[358796449,1745439039430,-151.0,0.0002101,2]
[358796450,1745439039439,-151.0,0.0002101,2]
[358796451,1745439039450,-500.0,0.0002101,2]
[358796452,1745439039462,-151.0,0.0002101,2]
[358796453,1745439039471,-151.0,0.0002101,2]
[358796454,1745439039481,-151.0,0.0002101,2]
[358796455,1745439039492,-151.0,0.0002101,2]
[358796456,1745439039502,-151.0,0.0002101,2]
[358796457,1745439039511,-200.32759676,0.0002101,2]
[358796458,1745439039521,-151.0,0.0002101,2]
[358796459,1745439039534,-500.0,0.0002101,2]
[358796460,1745439039544,-151.0,0.0002101,2]
[358796461,1745439039554,-3000.0,0.0002102,2]
[358796462,1745439039563,-3000.0,0.0002103,2]
[358796463,1745439039574,-3000.0,0.0002104,2]
[358796464,1745439039583,-3000.0,0.0002105,2]
[358796465,1745439039593,-3000.0,0.0002106,2]
[358796466,1745439039603,-3000.0,0.0002107,2]
[358796467,1745439039613,-3000.0,0.0002108,2]
[358796468,1745439039623,-3000.0,0.0002109,2]
[358796469,1745439039633,-3000.0,0.000211,2]
[358796470,1745439039643,-3000.0,0.0002111,2]
[358796471,1745439039653,-3000.0,0.0002112,2]
[358796472,1745439039663,-3000.0,0.0002113,2]
[358796473,1745439039672,-3000.0,0.0002114,2]
[358796474,1745439039682,-3000.0,0.0002115,2]
[358796475,1745439039692,-3000.0,0.0002116,2]
[358796476,1745439039702,-500.0,0.00021161,2]
[358796477,1745439039711,-4781.219101,0.0002117,2]
[358796478,1745439039721,-151.0,0.00021284,2]
[358796479,1745439039731,-151.0,0.00021284,2]
[358796480,1745439039741,-151.0,0.00021284,2]
[358796481,1745439039751,-500.0,0.00021284,2]
[358796482,1745439039761,-594.0,0.00021284,2]
[358796483,1745439039771,-500.0,0.00021284,2]
[358796484,1745439039781,-2496.4,0.000213,2]
[358796485,1745439039790,-401.51747794,0.00021435,2]
[358796486,1745439039800,-600.0,0.00021439,2]
[358796487,1745439039809,-3316.91322101,0.00021486,3]
[358796488,1745439039819,-198.0,0.00021558,2]
[358796489,1745439039829,-294.03380567,0.00021558,2]
[358796490,1745439039839,-151.0,0.00021558,2]
[358796491,1745439039848,-239.244854,0.00021918,2]
[358796492,1745439039857,-153.0,0.00022,2]
[358796493,1745439039867,-3316.91322101,0.00022279,3]
[358796494,1745439039876,-204.15319816,0.00022306,2]
[358796495,1745439039886,-587.0,0.00022376,2]
[358796496,1745439039896,-544.0,0.00022406,2]
[358796497,1745439039906,-2246.0,0.00022406,2]
[358796498,1745439039915,-706.0,0.00022406,2]
[358796499,1745439039925,-151.315,0.0002255,2]
[358796500,1745439039934,-213.046,0.0002255,2]
[358796501,1745439039944,-204.15319816,0.00022947,2]
[358796502,1745439039954,-3316.91322101,0.00023072,4]
[358796503,1745439039963,-900.0,0.00023083,2]
[358796504,1745439039973,-151.0,0.00023216,2]
[358796505,1745439039982,-204.15319816,0.00023587,2]
[358796506,1745439039993,-151.0,0.00023764,2]
[358796507,1745439040003,-3316.91322101,0.00023866,5]
[358796508,1745439040012,-500.0,0.000239,120]
[358796509,1745439040021,-500.0,0.000239,120]
[358796510,1745439040031,-500.0,0.000239,120]
[358796511,1745439040040,-2506.39361452,0.00024,2]
[358796512,1745439040051,-151.0,0.000242,8]
[358796513,1745439040063,-204.15319816,0.00024228,2]
[358796514,1745439040072,-424.421,0.00024269,6]
[358796515,1745439040082,-151.0,0.00024312,2]
[358796517,1745439040092,-823.0,0.00024394,2]
[358796519,1745439040101,-151.0,0.000246,9]
[358796520,1745439040111,-633.0,0.000246,2]
[358796521,1745439040122,-3316.91322101,0.00024659,5]
[358796522,1745439040132,-155.0,0.00024673,3]
[358796523,1745439040141,-155.0,0.00024673,3]
[358796524,1745439040150,-287.09778638,0.00024673,3]
[358796525,1745439040160,-248.51570693,0.00024673,3]
[358796526,1745439040170,-1200.0,0.00024727,2]
[358796527,1745439040179,-4251.7395993,0.00024775,2]
[358796528,1745439040189,-1327.31077983,0.000248,2]
[358796529,1745439040199,-442.43692661,0.00024852,2]
[358796530,1745439040209,-151.0,0.0002486,2]
[358796531,1745439040219,-1127.71530654,0.00024867,2]
[358796532,1745439040229,-204.15319816,0.00024868,2]
[358796533,1745439040239,-151.60294825,0.00024873,2]
[358796534,1745439040248,-1000.0,0.00024876,2]
[358796535,1745439040258,-267.40624807,0.00024876,2]
[358796536,1745439040271,-732.59375193,0.00024876,2]
[358796537,1745439040281,-177.2424345,0.00024879,2]
[358796538,1745439040291,-151.0,0.00024898,7]
[358796539,1745439040300,-151.0,0.00024898,7]
[358796540,1745439040311,-151.0,0.00024898,7]
[358796541,1745439040321,-151.0,0.00024898,7]
[358796542,1745439040331,-160.0,0.00024899,2]
[358796543,1745439040342,-162.21770877,0.00024899,2]
[358796544,1745439040352,-70539.97064726,0.000249,2]
[358796545,1745439040364,-207190.41586683,0.000249,2]
[358796548,1745439041096,-13938.00943857,0.000249,2]
[358796549,1745439041108,-11876.0063446,0.000249,2]
[358796551,1745439041329,-842.42856795,0.000249,2]
[358796574,1745439046662,-12735.62009707,0.000249,2]
[358796578,1745439046715,-1395.07869425,0.000249,2]
[358796579,1745439046728,-1363.3573757,0.000249,2]
[358796580,1745439046740,-444.80916256,0.000249,2]
[358796581,1745439046752,-2043.04996144,0.000249,2]
[358796582,1745439046761,-796.34960177,0.000249,3]